[Event "Titled Tuesday Blitz July 4 Early 2023"]
[White "Souleidis, Georgios"]
[Black "Zia, Tahsin Tajwar"]
[WhiteFideId "4206827"]
[BlackFideId "10211888"]
[WhiteElo "2649"]
[BlackElo "2406"]
[Result "1/2-1/2"]
[Round "3"]
[TimeControl "180+2"]
[Date "2023.07.04"]
[WhiteClock "0:00:06"]
[BlackClock "0:00:14"]
[Board "66"]

1. e4 {[%clk 0:03:00]}  c6 {[%clk 0:03:00]} 2. d4 {[%clk 0:02:59]}  d5 {[%clk 0:03:00]} 3. e5 {[%clk 0:03:00]}  Bf5 {[%clk 0:03:00]} 4. h4 {[%clk 0:03:00]}  Qb6 {[%clk 0:02:58]} 5. g4 {[%clk 0:02:52]}  Bd7 {[%clk 0:02:57]} 6. Nc3 {[%clk 0:02:51]}  e6 {[%clk 0:02:56]} 7. h5 {[%clk 0:02:51]}  h6 {[%clk 0:02:51]} 8. f4 {[%clk 0:02:50]}  c5 {[%clk 0:02:52]} 9. Nf3 {[%clk 0:02:51]}  Nc6 {[%clk 0:02:51]} 10. Ne2 {[%clk 0:02:34]}  cxd4 {[%clk 0:02:46]} 11. Nexd4 {[%clk 0:02:35]}  Nxd4 {[%clk 0:02:41]} 12. Nxd4 {[%clk 0:02:36]}  Bc5 {[%clk 0:02:41]} 13. c3 {[%clk 0:02:36]}  Ne7 {[%clk 0:02:41]} 14. Rh2 {[%clk 0:02:33]}  Nc6 {[%clk 0:02:33]} 15. Be3 {[%clk 0:02:32]}  Nxd4 {[%clk 0:02:31]} 16. Bxd4 {[%clk 0:02:32]}  Rc8 {[%clk 0:02:27]} 17. Qd2 {[%clk 0:02:24]}  Bb5 {[%clk 0:02:20]} 18. Bxb5+ {[%clk 0:02:17]}  Qxb5 {[%clk 0:02:21]} 19. O-O-O {[%clk 0:02:16]}  Bxd4 {[%clk 0:01:48]} 20. Qxd4 {[%clk 0:02:17]}  b6 {[%clk 0:01:48]} 21. Kb1 {[%clk 0:02:13]}  Rc4 {[%clk 0:01:48]} 22. Qd2 {[%clk 0:02:13]}  Kd7 {[%clk 0:01:42]} 23. g5 {[%clk 0:01:49]}  Rhc8 {[%clk 0:01:34]} 24. gxh6 {[%clk 0:01:49]}  gxh6 {[%clk 0:01:35]} 25. Ka1 {[%clk 0:01:31]}  Re4 {[%clk 0:01:34]} 26. f5 {[%clk 0:01:10]}  Rxe5 {[%clk 0:01:23]} 27. fxe6+ {[%clk 0:01:09]}  fxe6 {[%clk 0:01:19]} 28. Qxh6 {[%clk 0:01:08]}  Kd6 {[%clk 0:01:17]} 29. Qf4 {[%clk 0:01:04]}  Qc4 {[%clk 0:00:37]} 30. Rd4 {[%clk 0:00:55]}  Rg8 {[%clk 0:00:37]} 31. Rh1 {[%clk 0:00:30]}  Qe2 {[%clk 0:00:38]} 32. a3 {[%clk 0:00:25]}  Rg2 {[%clk 0:00:35]} 33. Qf8+ {[%clk 0:00:20]}  Kd7 {[%clk 0:00:31]} 34. Qf7+ {[%clk 0:00:18]}  Kd6 {[%clk 0:00:28]} 35. Rb4 {[%clk 0:00:13]}  Rf5 {[%clk 0:00:23]} 36. Qe8 {[%clk 0:00:11]}  Rf1+ {[%clk 0:00:15]} 37. Rxf1 {[%clk 0:00:11]}  Qxf1+ {[%clk 0:00:16]} 38. Ka2 {[%clk 0:00:12]}  Rg1 {[%clk 0:00:16]} 39. Qb8+ {[%clk 0:00:12]}  Kc6 {[%clk 0:00:13]} 40. Qc8+ {[%clk 0:00:12]}  Kd6 {[%clk 0:00:13]} 41. Qb8+ {[%clk 0:00:12]}  Kc6 {[%clk 0:00:14]} 42. Qc8+ {[%clk 0:00:06]}  Kd6 {[%clk 0:00:14]} 43. Qb8+ {[%clk 0:00:06]} 1/2-1/2


[Site "https://www.chess.com"]

[Event "Titled Tuesday Blitz July 4 Early 2023"]
[White "Rian, Kapriaga"]
[Black "chess123456s"]
[WhiteFideId "7103263"]
[WhiteElo "2354"]
[BlackElo "2638"]
[Result "0-1"]
[Round "3"]
[TimeControl "180+2"]
[Date "2023.07.04"]
[WhiteClock "0:00:00"]
[BlackClock "0:00:13"]
[Board "67"]

1. d4 {[%clk 0:02:52]}  d5 {[%clk 0:02:58]} 2. Nf3 {[%clk 0:02:51]}  Nf6 {[%clk 0:02:58]} 3. Bf4 {[%clk 0:02:50]}  c5 {[%clk 0:02:58]} 4. e3 {[%clk 0:02:50]}  e6 {[%clk 0:02:58]} 5. c3 {[%clk 0:02:46]}  Nc6 {[%clk 0:02:55]} 6. Nbd2 {[%clk 0:02:44]}  Bd6 {[%clk 0:02:55]} 7. Ne5 {[%clk 0:02:35]}  Qc7 {[%clk 0:02:53]} 8. Bb5 {[%clk 0:02:31]}  O-O {[%clk 0:02:53]} 9. Ndf3 {[%clk 0:02:22]}  Ne7 {[%clk 0:02:22]} 10. Bd3 {[%clk 0:02:13]}  Ng6 {[%clk 0:02:14]} 11. O-O {[%clk 0:02:04]}  Nxf4 {[%clk 0:02:09]} 12. exf4 {[%clk 0:02:04]}  Ne4 {[%clk 0:02:08]} 13. Qe2 {[%clk 0:01:56]}  f6 {[%clk 0:01:58]} 14. Ng4 {[%clk 0:01:41]}  Bxf4 {[%clk 0:01:55]} 15. g3 {[%clk 0:00:47]}  Bd6 {[%clk 0:01:51]} 16. Rfe1 {[%clk 0:00:44]}  Bd7 {[%clk 0:01:11]} 17. Rad1 {[%clk 0:00:42]}  Rae8 {[%clk 0:01:10]} 18. Ne3 {[%clk 0:00:36]}  cxd4 {[%clk 0:00:52]} 19. cxd4 {[%clk 0:00:35]}  Bc6 {[%clk 0:00:51]} 20. Bb1 {[%clk 0:00:29]}  Qa5 {[%clk 0:00:49]} 21. Nd2 {[%clk 0:00:15]}  Bb5 {[%clk 0:00:47]} 22. Qh5 {[%clk 0:00:15]}  g6 {[%clk 0:00:44]} 23. Qh6 {[%clk 0:00:15]}  Nxd2 {[%clk 0:00:28]} 24. Bxg6 {[%clk 0:00:14]}  Nf3+ {[%clk 0:00:28]} 25. Kg2 {[%clk 0:00:14]}  Nxe1+ {[%clk 0:00:28]} 26. Rxe1 {[%clk 0:00:13]}  Re7 {[%clk 0:00:28]} 27. b4 {[%clk 0:00:06]}  Bxb4 {[%clk 0:00:24]} 28. Nf5 {[%clk 0:00:00]}  Qc7 {[%clk 0:00:13]} 0-1


[Site "https://www.chess.com"]

[Event "Titled Tuesday Blitz July 4 Early 2023"]
[White "Rutvij09"]
[Black "Eljanov, Pavel"]
[BlackFideId "14102951"]
[WhiteElo "2528"]
[BlackElo "2933"]
[Result "0-1"]
[Round "3"]
[TimeControl "180+2"]
[Date "2023.07.04"]
[WhiteClock "0:00:00"]
[BlackClock "0:00:49"]
[Board "71"]

1. e4 {[%clk 0:03:00]}  c6 {[%clk 0:02:59]} 2. d4 {[%clk 0:03:01]}  d5 {[%clk 0:03:00]} 3. Nc3 {[%clk 0:03:01]}  dxe4 {[%clk 0:03:00]} 4. Nxe4 {[%clk 0:03:02]}  Bf5 {[%clk 0:03:00]} 5. Ng3 {[%clk 0:03:02]}  Bg6 {[%clk 0:03:01]} 6. h4 {[%clk 0:03:03]}  h6 {[%clk 0:03:01]} 7. Nf3 {[%clk 0:03:03]}  e6 {[%clk 0:03:02]} 8. Ne5 {[%clk 0:03:03]}  Bh7 {[%clk 0:03:02]} 9. Bd3 {[%clk 0:03:01]}  Bxd3 {[%clk 0:03:02]} 10. Qxd3 {[%clk 0:03:02]}  Nd7 {[%clk 0:03:02]} 11. f4 {[%clk 0:02:57]}  Ngf6 {[%clk 0:03:01]} 12. Be3 {[%clk 0:02:53]}  Qa5+ {[%clk 0:02:47]} 13. c3 {[%clk 0:02:43]}  Be7 {[%clk 0:02:40]} 14. O-O {[%clk 0:02:17]}  Rd8 {[%clk 0:02:29]} 15. Qe2 {[%clk 0:02:08]}  O-O {[%clk 0:02:24]} 16. a3 {[%clk 0:02:02]}  Qc7 {[%clk 0:02:03]} 17. h5 {[%clk 0:01:48]}  c5 {[%clk 0:02:01]} 18. Rad1 {[%clk 0:00:50]}  Nd5 {[%clk 0:01:31]} 19. Ne4 {[%clk 0:00:30]}  cxd4 {[%clk 0:01:18]} 20. cxd4 {[%clk 0:00:09]}  f5 {[%clk 0:01:10]} 21. Nd2 {[%clk 0:00:03]}  Nxe5 {[%clk 0:01:07]} 22. fxe5 {[%clk 0:00:04]}  Qc2 {[%clk 0:01:06]} 23. Bf2 {[%clk 0:00:01]}  Qxb2 {[%clk 0:00:58]} 24. Qc4 {[%clk 0:00:01]}  Rc8 {[%clk 0:00:54]} 25. Qd3 {[%clk 0:00:01]}  Rc3 {[%clk 0:00:52]} 26. Qe2 {[%clk 0:00:00]}  Nf4 {[%clk 0:00:49]} 0-1


[Site "https://www.chess.com"]

[Event "Titled Tuesday Blitz July 4 Early 2023"]
[White "Yelisieiev, Yevhenii"]
[Black "Shimanov, Aleksandr"]
[WhiteFideId "14139642"]
[BlackFideId "4198603"]
[WhiteElo "2526"]
[BlackElo "2916"]
[Result "1/2-1/2"]
[Round "3"]
[TimeControl "180+2"]
[Date "2023.07.04"]
[WhiteClock "0:00:04"]
[BlackClock "0:00:04"]
[Board "73"]

1. d4 {[%clk 0:02:59]}  Nf6 {[%clk 0:02:56]} 2. Nf3 {[%clk 0:02:59]}  e6 {[%clk 0:02:56]} 3. c4 {[%clk 0:02:59]}  Bb4+ {[%clk 0:02:53]} 4. Nbd2 {[%clk 0:02:59]}  O-O {[%clk 0:02:51]} 5. a3 {[%clk 0:02:59]}  Be7 {[%clk 0:02:51]} 6. e4 {[%clk 0:02:58]}  d6 {[%clk 0:02:51]} 7. Bd3 {[%clk 0:02:58]}  Nfd7 {[%clk 0:02:49]} 8. b4 {[%clk 0:02:51]}  e5 {[%clk 0:02:48]} 9. d5 {[%clk 0:02:43]}  c5 {[%clk 0:02:12]} 10. O-O {[%clk 0:02:37]}  Na6 {[%clk 0:02:11]} 11. Qb3 {[%clk 0:02:19]}  b6 {[%clk 0:02:06]} 12. Bb2 {[%clk 0:02:17]}  Nf6 {[%clk 0:02:03]} 13. b5 {[%clk 0:02:06]}  Nc7 {[%clk 0:02:02]} 14. a4 {[%clk 0:02:06]}  Nh5 {[%clk 0:02:02]} 15. a5 {[%clk 0:02:04]}  Rb8 {[%clk 0:02:01]} 16. axb6 {[%clk 0:02:03]}  axb6 {[%clk 0:02:02]} 17. g3 {[%clk 0:01:57]}  g6 {[%clk 0:02:00]} 18. Qc3 {[%clk 0:01:43]}  f6 {[%clk 0:01:55]} 19. Ra7 {[%clk 0:01:41]}  Ng7 {[%clk 0:01:52]} 20. Rfa1 {[%clk 0:01:41]}  Rf7 {[%clk 0:01:49]} 21. Nf1 {[%clk 0:01:36]}  Nce8 {[%clk 0:01:48]} 22. Ne1 {[%clk 0:01:22]}  f5 {[%clk 0:01:45]} 23. exf5 {[%clk 0:01:17]}  Nxf5 {[%clk 0:01:44]} 24. Bxf5 {[%clk 0:01:14]}  Bxf5 {[%clk 0:01:35]} 25. Ng2 {[%clk 0:01:13]}  Bf6 {[%clk 0:01:30]} 26. Nge3 {[%clk 0:01:11]}  Bd7 {[%clk 0:01:28]} 27. Nd2 {[%clk 0:01:08]}  Bg7 {[%clk 0:01:18]} 28. Ne4 {[%clk 0:01:07]}  Bf5 {[%clk 0:01:19]} 29. Rxf7 {[%clk 0:01:06]}  Kxf7 {[%clk 0:01:19]} 30. Ra7+ {[%clk 0:01:06]}  Kg8 {[%clk 0:01:19]} 31. f3 {[%clk 0:00:55]}  Bxe4 {[%clk 0:01:02]} 32. fxe4 {[%clk 0:00:55]}  Ra8 {[%clk 0:01:02]} 33. Qa3 {[%clk 0:00:55]}  Rxa7 {[%clk 0:01:01]} 34. Qxa7 {[%clk 0:00:56]}  Nf6 {[%clk 0:01:02]} 35. Bc3 {[%clk 0:00:20]}  Nxe4 {[%clk 0:00:41]} 36. Be1 {[%clk 0:00:16]}  Nf6 {[%clk 0:00:38]} 37. Qb7 {[%clk 0:00:14]}  Bh6 {[%clk 0:00:38]} 38. Nf1 {[%clk 0:00:12]}  Ne4 {[%clk 0:00:35]} 39. Kg2 {[%clk 0:00:10]}  Bc1 {[%clk 0:00:29]} 40. Qc6 {[%clk 0:00:07]}  h5 {[%clk 0:00:25]} 41. h4 {[%clk 0:00:07]}  g5 {[%clk 0:00:24]} 42. hxg5 {[%clk 0:00:05]}  Nxg5 {[%clk 0:00:25]} 43. Bd2 {[%clk 0:00:04]}  Bxd2 {[%clk 0:00:25]} 44. Nxd2 {[%clk 0:00:05]}  e4 {[%clk 0:00:25]} 45. Nf1 {[%clk 0:00:04]}  Qf8 {[%clk 0:00:19]} 46. Qxb6 {[%clk 0:00:03]}  Qf3+ {[%clk 0:00:18]} 47. Kg1 {[%clk 0:00:03]}  Nh3+ {[%clk 0:00:16]} 48. Kh2 {[%clk 0:00:03]}  Nf2 {[%clk 0:00:12]} 49. Qd8+ {[%clk 0:00:03]}  Kg7 {[%clk 0:00:12]} 50. Qe7+ {[%clk 0:00:03]}  Kg8 {[%clk 0:00:09]} 51. Qe8+ {[%clk 0:00:02]}  Kg7 {[%clk 0:00:09]} 52. Qe7+ {[%clk 0:00:02]}  Kh8 {[%clk 0:00:08]} 53. Qe8+ {[%clk 0:00:02]}  Kh7 {[%clk 0:00:09]} 54. Qe7+ {[%clk 0:00:03]}  Kg8 {[%clk 0:00:04]} 55. Qe8+ {[%clk 0:00:03]}  Kg7 {[%clk 0:00:04]} 56. Qe7+ {[%clk 0:00:04]} 1/2-1/2


[Site "https://www.chess.com"]

[Event "Titled Tuesday Blitz July 4 Early 2023"]
[White "Kuzmin, Roman"]
[Black "Molina, Roberto Junio Brito"]
[WhiteFideId "44134932"]
[BlackFideId "2109450"]
[WhiteElo "2525"]
[BlackElo "2857"]
[Result "0-1"]
[Round "3"]
[TimeControl "180+2"]
[Date "2023.07.04"]
[WhiteClock "0:00:21"]
[BlackClock "0:00:26"]
[Board "75"]

1. e4 {[%clk 0:02:59]}  c6 {[%clk 0:03:00]} 2. d4 {[%clk 0:02:58]}  d5 {[%clk 0:03:01]} 3. Nc3 {[%clk 0:02:58]}  dxe4 {[%clk 0:03:02]} 4. Nxe4 {[%clk 0:02:59]}  Nd7 {[%clk 0:03:02]} 5. Nf3 {[%clk 0:02:57]}  Ngf6 {[%clk 0:03:03]} 6. Nxf6+ {[%clk 0:02:55]}  Nxf6 {[%clk 0:03:03]} 7. Bd3 {[%clk 0:02:54]}  Bg4 {[%clk 0:03:03]} 8. c3 {[%clk 0:02:52]}  Qd5 {[%clk 0:03:04]} 9. Be2 {[%clk 0:02:48]}  e6 {[%clk 0:03:04]} 10. h3 {[%clk 0:02:47]}  Bh5 {[%clk 0:03:04]} 11. Bf4 {[%clk 0:02:41]}  Bd6 {[%clk 0:03:00]} 12. Ne5 {[%clk 0:02:33]}  Qxg2 {[%clk 0:02:49]} 13. Rf1 {[%clk 0:02:25]}  Bxe2 {[%clk 0:02:35]} 14. Qxe2 {[%clk 0:02:25]}  Qe4 {[%clk 0:02:32]} 15. Be3 {[%clk 0:02:24]}  Bxe5 {[%clk 0:02:28]} 16. dxe5 {[%clk 0:02:25]}  Qxe5 {[%clk 0:02:25]} 17. O-O-O {[%clk 0:02:23]}  O-O {[%clk 0:02:22]} 18. f4 {[%clk 0:02:01]}  Qe4 {[%clk 0:01:58]} 19. Rd4 {[%clk 0:01:54]}  Qf5 {[%clk 0:01:58]} 20. Rg1 {[%clk 0:01:54]}  Nd5 {[%clk 0:01:43]} 21. Qg2 {[%clk 0:01:37]}  g6 {[%clk 0:01:23]} 22. Bd2 {[%clk 0:01:31]}  Rad8 {[%clk 0:01:15]} 23. Re4 {[%clk 0:01:30]}  Rd7 {[%clk 0:01:02]} 24. Rge1 {[%clk 0:01:15]}  Rfd8 {[%clk 0:01:00]} 25. c4 {[%clk 0:00:32]}  Nf6 {[%clk 0:00:51]} 26. R4e2 {[%clk 0:00:33]}  Qd3 {[%clk 0:00:35]} 27. Bc3 {[%clk 0:00:31]}  Qxc4 {[%clk 0:00:33]} 28. Kb1 {[%clk 0:00:30]}  Nd5 {[%clk 0:00:29]} 29. Be5 {[%clk 0:00:23]}  Nxf4 {[%clk 0:00:29]} 30. Bxf4 {[%clk 0:00:21]}  Qxf4 {[%clk 0:00:30]} 31. a3 {[%clk 0:00:21]}  Rd1+ {[%clk 0:00:29]} 32. Rxd1 {[%clk 0:00:20]}  Rxd1+ {[%clk 0:00:30]} 33. Ka2 {[%clk 0:00:21]}  Qc4+ {[%clk 0:00:29]} 34. b3 {[%clk 0:00:21]}  Qc1 {[%clk 0:00:26]} 0-1


[Site "https://www.chess.com"]

[Event "Titled Tuesday Blitz July 4 Early 2023"]
[White "Harshavardhan G B"]
[Black "feuervogel1000000"]
[WhiteFideId "25059009"]
[WhiteElo "2825"]
[BlackElo "2516"]
[Result "1-0"]
[Round "3"]
[TimeControl "180+2"]
[Date "2023.07.04"]
[WhiteClock "0:00:50"]
[BlackClock "0:00:29"]
[Board "77"]

1. e4 {[%clk 0:02:59]}  e5 {[%clk 0:02:58]} 2. Nc3 {[%clk 0:02:58]}  Nf6 {[%clk 0:02:58]} 3. Bc4 {[%clk 0:02:58]}  Nc6 {[%clk 0:02:58]} 4. d3 {[%clk 0:02:58]}  h6 {[%clk 0:02:56]} 5. Nge2 {[%clk 0:02:56]}  Bc5 {[%clk 0:02:53]} 6. Be3 {[%clk 0:02:53]}  d6 {[%clk 0:02:52]} 7. Bxc5 {[%clk 0:02:50]}  dxc5 {[%clk 0:02:53]} 8. O-O {[%clk 0:02:51]}  g5 {[%clk 0:02:50]} 9. a4 {[%clk 0:02:48]}  Bg4 {[%clk 0:02:45]} 10. f3 {[%clk 0:02:45]}  Bh5 {[%clk 0:02:44]} 11. Ng3 {[%clk 0:02:45]}  Bg6 {[%clk 0:02:44]} 12. Nd5 {[%clk 0:02:44]}  Nxd5 {[%clk 0:02:43]} 13. Bxd5 {[%clk 0:02:45]}  Qd6 {[%clk 0:02:44]} 14. c3 {[%clk 0:02:41]}  O-O-O {[%clk 0:02:43]} 15. Qb3 {[%clk 0:02:35]}  Rd7 {[%clk 0:02:42]} 16. a5 {[%clk 0:02:34]}  a6 {[%clk 0:02:42]} 17. Qa4 {[%clk 0:02:32]}  Ne7 {[%clk 0:02:39]} 18. Bc4 {[%clk 0:02:29]}  h5 {[%clk 0:02:36]} 19. Rac1 {[%clk 0:02:25]}  h4 {[%clk 0:02:36]} 20. Ne2 {[%clk 0:02:25]}  f5 {[%clk 0:02:31]} 21. b4 {[%clk 0:02:22]}  cxb4 {[%clk 0:02:28]} 22. cxb4 {[%clk 0:02:23]}  f4 {[%clk 0:02:18]} 23. h3 {[%clk 0:02:23]}  Nc6 {[%clk 0:02:16]} 24. b5 {[%clk 0:02:21]}  Nd4 {[%clk 0:02:13]} 25. Nxd4 {[%clk 0:02:20]}  Qxd4+ {[%clk 0:02:13]} 26. Kh2 {[%clk 0:02:20]}  axb5 {[%clk 0:02:12]} 27. Qxb5 {[%clk 0:02:21]}  c6 {[%clk 0:02:08]} 28. Qb3 {[%clk 0:02:21]}  Rc7 {[%clk 0:02:04]} 29. a6 {[%clk 0:02:15]}  b6 {[%clk 0:01:53]} 30. Be6+ {[%clk 0:02:15]}  Kb8 {[%clk 0:01:53]} 31. a7+ {[%clk 0:02:12]}  Rxa7 {[%clk 0:01:43]} 32. Rxc6 {[%clk 0:02:11]}  Rb7 {[%clk 0:01:42]} 33. Bd5 {[%clk 0:02:08]}  Be8 {[%clk 0:01:42]} 34. Rf6 {[%clk 0:02:05]}  Bd7 {[%clk 0:01:25]} 35. Bxb7 {[%clk 0:01:52]}  Kxb7 {[%clk 0:01:26]} 36. Rb1 {[%clk 0:01:52]}  b5 {[%clk 0:01:21]} 37. Rf7 {[%clk 0:01:50]}  Kb6 {[%clk 0:01:17]} 38. Rf6+ {[%clk 0:01:43]}  Kb7 {[%clk 0:01:17]} 39. Qf7 {[%clk 0:01:43]}  Qxd3 {[%clk 0:01:09]} 40. Qe7 {[%clk 0:01:16]}  g4 {[%clk 0:01:04]} 41. Rg1 {[%clk 0:00:52]}  gxf3 {[%clk 0:00:43]} 42. Rd6 {[%clk 0:00:50]}  Qxe4 {[%clk 0:00:34]} 43. Qxd7+ {[%clk 0:00:50]}  Kb8 {[%clk 0:00:29]} 44. Rb6+ {[%clk 0:00:50]} 1-0


[Site "https://www.chess.com"]

[Event "Titled Tuesday Blitz July 4 Early 2023"]
[White "Jovic, Stanoje"]
[Black "Kantor, Gergely"]
[WhiteFideId "905020"]
[BlackFideId "751499"]
[WhiteElo "2514"]
[BlackElo "2822"]
[Result "0-1"]
[Round "3"]
[TimeControl "180+2"]
[Date "2023.07.04"]
[WhiteClock "0:00:00"]
[BlackClock "0:01:06"]
[Board "78"]

1. c4 {[%clk 0:02:56]}  Nc6 {[%clk 0:02:59]} 2. g3 {[%clk 0:02:56]}  e5 {[%clk 0:03:00]} 3. Bg2 {[%clk 0:02:55]}  h5 {[%clk 0:03:00]} 4. Nc3 {[%clk 0:02:52]}  h4 {[%clk 0:03:00]} 5. d3 {[%clk 0:02:45]}  Bc5 {[%clk 0:02:59]} 6. e3 {[%clk 0:02:42]}  a6 {[%clk 0:02:58]} 7. Bd2 {[%clk 0:02:31]}  d6 {[%clk 0:02:47]} 8. Nd5 {[%clk 0:02:22]}  Nf6 {[%clk 0:02:39]} 9. b4 {[%clk 0:02:21]}  Ba7 {[%clk 0:02:36]} 10. a4 {[%clk 0:02:17]}  Nxd5 {[%clk 0:02:34]} 11. cxd5 {[%clk 0:02:17]}  Ne7 {[%clk 0:02:34]} 12. Qc2 {[%clk 0:02:10]}  h3 {[%clk 0:02:26]} 13. Bf3 {[%clk 0:02:06]}  Bf5 {[%clk 0:02:26]} 14. Rc1 {[%clk 0:02:01]}  Rc8 {[%clk 0:02:26]} 15. g4 {[%clk 0:01:56]}  Bg6 {[%clk 0:02:24]} 16. Ne2 {[%clk 0:01:53]}  Qd7 {[%clk 0:02:19]} 17. e4 {[%clk 0:01:44]}  c6 {[%clk 0:02:14]} 18. Qb3 {[%clk 0:01:32]}  cxd5 {[%clk 0:02:12]} 19. exd5 {[%clk 0:01:23]}  Rxc1+ {[%clk 0:02:10]} 20. Bxc1 {[%clk 0:01:23]}  f5 {[%clk 0:02:07]} 21. Rg1 {[%clk 0:01:13]}  O-O {[%clk 0:02:03]} 22. Bg5 {[%clk 0:01:09]}  fxg4 {[%clk 0:01:59]} 23. Bxg4 {[%clk 0:00:58]}  Bxf2+ {[%clk 0:01:59]} 24. Kd1 {[%clk 0:00:55]}  Bf5 {[%clk 0:01:53]} 25. Bxe7 {[%clk 0:00:53]}  Bxg4 {[%clk 0:01:47]} 26. Rxg4 {[%clk 0:00:48]}  Qxg4 {[%clk 0:01:25]} 27. Bxf8 {[%clk 0:00:47]}  Kxf8 {[%clk 0:01:25]} 28. Qc4 {[%clk 0:00:42]}  Qxc4 {[%clk 0:01:21]} 29. dxc4 {[%clk 0:00:42]}  g5 {[%clk 0:01:20]} 30. Nc3 {[%clk 0:00:40]}  g4 {[%clk 0:01:15]} 31. Ne4 {[%clk 0:00:37]}  Bg1 {[%clk 0:01:14]} 32. Ke2 {[%clk 0:00:29]}  Bxh2 {[%clk 0:01:14]} 33. Nxd6 {[%clk 0:00:28]}  Bf4 {[%clk 0:01:07]} 34. Ne4 {[%clk 0:00:00]}  h2 {[%clk 0:01:06]} 0-1


[Site "https://www.chess.com"]

[Event "Titled Tuesday Blitz July 4 Early 2023"]
[White "Kushko, Dmitriy"]
[Black "Besedes, Danilo"]
[WhiteFideId "14162261"]
[BlackFideId "946796"]
[WhiteElo "2804"]
[BlackElo "2513"]
[Result "0-1"]
[Round "3"]
[TimeControl "180+2"]
[Date "2023.07.04"]
[WhiteClock "0:00:00"]
[BlackClock "0:00:08"]
[Board "80"]

1. Nf3 {[%clk 0:03:00]}  d6 {[%clk 0:02:59]} 2. d4 {[%clk 0:03:00]}  Nf6 {[%clk 0:02:58]} 3. g3 {[%clk 0:03:00]}  Nbd7 {[%clk 0:02:58]} 4. Bg2 {[%clk 0:02:59]}  e5 {[%clk 0:02:58]} 5. O-O {[%clk 0:02:59]}  Be7 {[%clk 0:02:58]} 6. Nc3 {[%clk 0:02:57]}  O-O {[%clk 0:02:57]} 7. e4 {[%clk 0:02:57]}  c6 {[%clk 0:02:57]} 8. a4 {[%clk 0:02:58]}  a5 {[%clk 0:02:57]} 9. h3 {[%clk 0:02:58]}  Qc7 {[%clk 0:02:57]} 10. Be3 {[%clk 0:02:57]}  Re8 {[%clk 0:02:58]} 11. Nh2 {[%clk 0:02:46]}  Nb6 {[%clk 0:02:56]} 12. b3 {[%clk 0:02:45]}  c5 {[%clk 0:02:44]} 13. Nb5 {[%clk 0:02:24]}  Qb8 {[%clk 0:02:44]} 14. d5 {[%clk 0:02:17]}  Bd7 {[%clk 0:02:44]} 15. Na3 {[%clk 0:02:09]}  Qc8 {[%clk 0:02:38]} 16. g4 {[%clk 0:02:08]}  Bf8 {[%clk 0:02:33]} 17. Qd3 {[%clk 0:02:05]}  Qd8 {[%clk 0:02:20]} 18. Kh1 {[%clk 0:01:48]}  h6 {[%clk 0:02:07]} 19. f4 {[%clk 0:01:45]}  exf4 {[%clk 0:02:07]} 20. Bxf4 {[%clk 0:01:46]}  Nh7 {[%clk 0:02:06]} 21. Rae1 {[%clk 0:01:40]}  Qh4 {[%clk 0:01:56]} 22. Nf3 {[%clk 0:01:34]}  Qd8 {[%clk 0:01:54]} 23. e5 {[%clk 0:01:30]}  dxe5 {[%clk 0:01:45]} 24. Nxe5 {[%clk 0:01:30]}  Nf6 {[%clk 0:01:07]} 25. g5 {[%clk 0:01:23]}  hxg5 {[%clk 0:01:02]} 26. Bxg5 {[%clk 0:01:24]}  Bd6 {[%clk 0:01:01]} 27. Bxf6 {[%clk 0:00:47]}  gxf6 {[%clk 0:00:56]} 28. Qg3+ {[%clk 0:00:26]}  Kf8 {[%clk 0:00:31]} 29. Ng6+ {[%clk 0:00:25]}  fxg6 {[%clk 0:00:30]} 30. Qxd6+ {[%clk 0:00:26]}  Kg7 {[%clk 0:00:28]} 31. Qxc5 {[%clk 0:00:17]}  Rc8 {[%clk 0:00:27]} 32. Qd4 {[%clk 0:00:13]}  Rxe1 {[%clk 0:00:25]} 33. Rxe1 {[%clk 0:00:13]}  Bf5 {[%clk 0:00:25]} 34. c4 {[%clk 0:00:12]}  Qd6 {[%clk 0:00:20]} 35. Nb5 {[%clk 0:00:13]}  Qb4 {[%clk 0:00:12]} 36. Re3 {[%clk 0:00:13]}  Nd7 {[%clk 0:00:11]} 37. d6 {[%clk 0:00:12]}  Ne5 {[%clk 0:00:11]} 38. Kh2 {[%clk 0:00:06]}  Rd8 {[%clk 0:00:11]} 39. Qb6 {[%clk 0:00:05]}  Rd7 {[%clk 0:00:11]} 40. Qd4 {[%clk 0:00:05]}  Kg8 {[%clk 0:00:08]} 41. Bd5+ {[%clk 0:00:05]}  Kg7 {[%clk 0:00:08]} 42. Rxe5 {[%clk 0:00:04]}  fxe5 {[%clk 0:00:08]} 43. Qxe5+ {[%clk 0:00:05]}  Kh6 {[%clk 0:00:09]} 44. Qh8+ {[%clk 0:00:04]}  Kg5 {[%clk 0:00:09]} 45. h4+ {[%clk 0:00:02]}  Kg4 {[%clk 0:00:09]} 46. Qd4+ {[%clk 0:00:02]}  Kh5 {[%clk 0:00:08]} 47. Bf3+ {[%clk 0:00:03]}  Kh6 {[%clk 0:00:07]} 48. Qh8+ {[%clk 0:00:03]}  Rh7 {[%clk 0:00:08]} 49. Qf8+ {[%clk 0:00:03]}  Rg7 {[%clk 0:00:08]} 50. Qe7 {[%clk 0:00:02]}  Rxe7 {[%clk 0:00:08]} 51. dxe7 {[%clk 0:00:00]}  Qxe7 {[%clk 0:00:08]} 0-1


[Site "https://www.chess.com"]

[Event "Titled Tuesday Blitz July 4 Early 2023"]
[White "Bachmann, Axel"]
[Black "Belov, Alexei"]
[WhiteFideId "3700488"]
[BlackFideId "4128206"]
[WhiteElo "2788"]
[BlackElo "2511"]
[Result "1-0"]
[Round "3"]
[TimeControl "180+2"]
[Date "2023.07.04"]
[WhiteClock "0:01:54"]
[BlackClock "0:01:29"]
[Board "81"]

1. e4 {[%clk 0:02:49]}  e6 {[%clk 0:02:59]} 2. d4 {[%clk 0:02:47]}  d5 {[%clk 0:03:00]} 3. Nc3 {[%clk 0:02:48]}  Nf6 {[%clk 0:03:00]} 4. e5 {[%clk 0:02:48]}  Ne4 {[%clk 0:03:00]} 5. Nce2 {[%clk 0:02:49]}  f6 {[%clk 0:03:00]} 6. f3 {[%clk 0:02:48]}  Ng5 {[%clk 0:03:00]} 7. exf6 {[%clk 0:02:45]}  Qxf6 {[%clk 0:02:58]} 8. Ng3 {[%clk 0:02:41]}  Bd6 {[%clk 0:02:45]} 9. Bd3 {[%clk 0:02:32]}  g6 {[%clk 0:02:38]} 10. N1e2 {[%clk 0:02:29]}  Nc6 {[%clk 0:02:34]} 11. c3 {[%clk 0:02:19]}  e5 {[%clk 0:02:33]} 12. dxe5 {[%clk 0:02:12]}  Nxe5 {[%clk 0:02:33]} 13. Bb5+ {[%clk 0:02:13]}  c6 {[%clk 0:02:34]} 14. Bxg5 {[%clk 0:02:08]}  Qxg5 {[%clk 0:02:28]} 15. f4 {[%clk 0:02:08]}  Qh4 {[%clk 0:02:03]} 16. fxe5 {[%clk 0:02:07]}  Bxe5 {[%clk 0:02:04]} 17. Qxd5 {[%clk 0:02:01]}  Bxg3+ {[%clk 0:02:00]} 18. Nxg3 {[%clk 0:02:02]}  cxb5 {[%clk 0:01:45]} 19. O-O {[%clk 0:01:59]}  Bd7 {[%clk 0:01:32]} 20. Rae1+ {[%clk 0:01:58]}  Kd8 {[%clk 0:01:32]} 21. Rf7 {[%clk 0:01:59]}  Qg4 {[%clk 0:01:29]} 22. h3 {[%clk 0:01:54]} 1-0


[Site "https://www.chess.com"]

[Event "Titled Tuesday Blitz July 4 Early 2023"]
[White "Atakhan, Abtin"]
[Black "Keleberda, Tymur"]
[WhiteFideId "22502203"]
[BlackFideId "14174294"]
[WhiteElo "2739"]
[BlackElo "2503"]
[Result "1-0"]
[Round "3"]
[TimeControl "180+2"]
[Date "2023.07.04"]
[WhiteClock "0:02:44"]
[BlackClock "0:02:26"]
[Board "85"]

1. Nf3 {[%clk 0:03:00]}  Nf6 {[%clk 0:02:59]} 2. g3 {[%clk 0:03:01]}  c5 {[%clk 0:02:57]} 3. c4 {[%clk 0:03:00]}  e6 {[%clk 0:02:55]} 4. Bg2 {[%clk 0:03:00]}  d5 {[%clk 0:02:56]} 5. cxd5 {[%clk 0:03:00]}  Nxd5 {[%clk 0:02:57]} 6. Nc3 {[%clk 0:02:58]}  Nc7 {[%clk 0:02:56]} 7. b3 {[%clk 0:02:57]}  Nc6 {[%clk 0:02:56]} 8. Bb2 {[%clk 0:02:58]}  Be7 {[%clk 0:02:56]} 9. Rc1 {[%clk 0:02:58]}  O-O {[%clk 0:02:56]} 10. Na4 {[%clk 0:02:59]}  b6 {[%clk 0:02:50]} 11. d4 {[%clk 0:02:50]}  cxd4 {[%clk 0:02:39]} 12. Rxc6 {[%clk 0:02:48]}  b5 {[%clk 0:02:29]} 13. Qxd4 {[%clk 0:02:44]}  bxa4 {[%clk 0:02:26]} 14. Qxg7# {[%clk 0:02:44]} 1-0


[Site "https://www.chess.com"]